bitfinex/quotes_SOLUSD_20251001
["timestamp","ask_amount","ask_price","bid_price","bid_amount"]
[1759288758938,454.85900727,209.0,208.99,34.42216157]
[1759288758939,459.64371278,209.0,208.99,34.42216157]
[1759288759908,459.64371278,209.0,208.99,33.76216157]
[1759288763120,472.28543526,209.0,208.97,0.14216157]
[1759288763325,0.68,208.99,208.98,33.62]
[1759288764308,4.78491793,208.99,208.98,33.62]
[1759288765209,5.46491793,208.99,208.98,33.62]
[1759288765617,17.42721277,208.99,208.98,33.6]
[1759288766622,16.74721277,208.99,208.98,33.6]
[1759288771341,17.42721277,208.99,208.98,33.6]
[1759288771935,16.74721277,208.99,208.98,33.6]
[1759288772537,17.42721277,208.99,208.98,33.6]
[1759288773142,16.74721277,208.99,208.98,33.6]
[1759288777040,17.42721277,208.99,208.98,33.6]
[1759288777938,16.74721277,208.99,208.98,33.6]
[1759288779944,17.42721277,208.99,208.98,33.6]
[1759288781322,16.74721277,208.99,208.98,34.31]
[1759288781721,4.78491793,208.99,208.98,34.31]
[1759288782127,459.64369708,209.0,208.98,34.45216157]
[1759288782340,459.64369708,209.0,208.99,0.85216157]
[1759288783928,459.64369708,209.0,208.99,0.14216157]
[1759288787864,460.32369708,209.0,208.99,0.14216157]
[1759288788037,459.64369708,209.0,208.99,0.14216157]
[1759288792865,460.32369708,209.0,208.98,33.6]
[1759288793169,0.68,208.99,208.96,116.22]
[1759288793367,471.60541956,209.0,208.97,33.64216157]
[1759288793368,0.71,208.98,208.97,33.64216157]
[1759288793846,0.71,208.99,208.97,33.64216157]
[1759288794259,4.7851469,208.98,208.97,33.64216157]
[1759288797870,4.78491793,208.99,208.97,33.64216157]
[1759288798947,4.78491793,208.99,208.98,0.85216157]
[1759288799569,4.78491793,208.99,208.98,0.14216157]
[1759288807770,454.85900727,209.0,208.99,0.14216157]
[1759288807977,454.85900727,209.0,208.99,34.63648471]
[1759288809256,460.35369626,209.0,208.99,33.64216157]
[1759288809757,459.64369626,209.0,208.99,33.64216157]
[1759288810251,472.31541874,209.0,208.97,0.14216157]
[1759288810577,472.31541874,209.0,208.96,74.62]
[1759288810578,471.60541874,209.0,208.96,74.62]
[1759288810751,20.8,208.97,208.96,74.62]
[1759288810953,454.85900727,209.0,208.97,0.14216157]
[1759288811171,475.65900727,209.0,208.99,0.14216157]
[1759288811476,454.85900727,209.0,208.99,0.85216157]
[1759288812471,454.85900727,209.0,208.99,0.14216157]
[1759288813378,454.85900727,209.0,208.99,0.85216157]
[1759288813559,454.85900727,209.0,208.99,1.13648471]
[1759288816174,454.85900727,209.0,208.99,0.42648471]
[1759288817054,454.85900727,209.0,208.99,1.13648471]
[1759288817861,454.85900727,209.0,208.99,34.67648471]
[1759288819168,454.85900727,209.0,208.99,39.46140264]
[1759288819681,454.85900727,209.0,208.99,34.67648471]
[1759288821521,454.85900727,209.0,208.99,33.96648471]
[1759288822371,454.85900727,209.0,208.99,34.63648471]
[1759288822680,454.85900727,209.0,208.99,39.42140264]
[1759288822991,454.85900727,209.0,208.99,118.32140264]
[1759288823189,454.85900727,209.0,208.99,131.91699665]
[1759288823379,454.85900727,209.0,208.99,53.01699665]
[1759288824365,454.85900727,209.0,208.99,135.92973709]
[1759288824769,454.85900727,209.0,208.99,179.01973709]
[1759288824964,454.85900727,209.0,208.99,184.08818919]
[1759288825365,454.85900727,209.0,208.99,180.07544875]
[1759288825591,454.85900727,209.0,208.99,184.09399761]
[1759288826963,454.85900727,209.0,208.99,180.07544875]
[1759288826964,395.99953442,209.0,208.99,180.07544875]
[1759288827179,321.4673427,209.0,208.99,180.07544875]
[1759288827491,208.49037153,209.0,208.99,180.07544875]
[1759288827988,103.10387019,209.0,208.99,180.07544875]
[1759288828181,61.22593376,209.0,208.99,180.07544875]
[1759288828390,0.69,209.1,209.03,0.28432314]
[1759288828574,0.69,209.1,209.06,0.14216157]
[1759288828775,0.69,209.1,209.08,0.42648471]
[1759288828965,0.69,209.12,209.1,0.42648471]
[1759288829167,20.8,209.13,209.11,33.66216157]
[1759288829688,0.69,209.12,209.11,33.94648471]
[1759288830677,21.49,209.13,209.12,0.42648471]
[1759288832175,0.69,209.13,209.12,0.42648471]
[1759288832389,0.2,209.14,209.12,0.42648471]
[1759288832682,0.89,209.14,209.13,33.92648471]
[1759288833678,5.67148608,209.14,209.13,0.42648471]
[1759288833886,5.67148608,209.14,209.13,33.92648471]
[1759288834386,0.89,209.14,209.13,33.92648471]
[1759288834985,0.2,209.14,209.13,33.92648471]
[1759288836866,0.89,209.14,209.13,33.92648471]
[1759288837487,0.89,209.14,209.13,71.20648471]
[1759288839098,0.2,209.14,209.13,71.20648471]
[1759288840079,0.2,209.14,209.13,85.49207872]
[1759288840297,0.2,209.14,209.13,90.27379344]
[1759288840497,0.2,209.14,209.13,94.04983679]
[1759288840877,0.2,209.14,209.13,93.35983679]
[1759288841078,0.2,209.14,209.13,93.33983679]
[1759288841899,0.2,209.14,209.13,84.78207872]
[1759288843202,0.2,209.14,209.13,89.56379344]
[1759288843401,0.2,209.14,209.13,84.78207872]
[1759288843599,0.89,209.14,209.13,37.70648471]
[1759288843800,0.89,209.14,209.13,71.18648471]
[1759288844590,0.89,209.14,209.13,71.04432314]
[1759288845207,0.89,209.14,209.13,71.18648471]
[1759288845378,0.89,209.14,209.13,150.08648471]
[1759288845583,5.67148608,209.14,209.13,150.08648471]
[1759288847118,5.67148608,209.14,209.13,187.34648471]
[1759288848878,5.67148608,209.14,209.13,153.58216157]
[1759288849208,5.67148608,209.14,209.13,108.02]
[1759288849404,5.67148608,209.14,209.13,74.54]
[1759288849779,5.67148608,209.14,209.13,108.02]
[1759288849984,20.8,209.11,209.02,13.59559401]
[1759288850211,0.69,209.1,209.04,0.42648471]
[1759288850509,0.69,209.1,209.03,37.26]
[1759288850687,0.69,209.09,209.03,37.26]
[1759288850891,4.783087,209.07,209.03,37.26]
[1759288851086,0.69,209.06,209.04,33.48]
[1759288851297,0.69,209.05,209.04,33.90648471]
[1759288851786,0.69,209.05,209.04,33.48]
[1759288852202,0.69,209.05,209.04,33.90648471]
[1759288852504,0.69,209.05,209.04,33.62216157]
[1759288852708,0.69,209.05,209.04,33.90648471]
[1759288854201,0.69,209.05,209.03,37.26]
[1759288854202,5.4735446,209.05,209.03,37.26]
[1759288854403,0.69,209.04,209.03,37.26]
[1759288854793,0.69,209.04,209.03,70.76]
[1759288854999,21.49,209.04,209.03,70.76]
[1759288855201,21.49,209.04,209.03,70.78]
[1759288856088,0.69,209.04,209.03,70.78]
[1759288856292,5.47377344,209.04,209.03,70.78]
[1759288856706,26.27377344,209.04,209.03,70.78]
[1759288856897,5.47377344,209.04,209.03,70.78]
[1759288857097,26.27377344,209.04,209.03,70.78]
[1759288857300,5.47377344,209.04,209.03,70.78]
[1759288857489,5.47377344,209.04,209.03,70.92216157]
[1759288859886,5.47377344,209.04,209.03,37.28]
[1759288860088,5.47377344,209.04,209.03,70.78]
[1759288860911,20.8,209.01,208.99,37.42216157]
[1759288861118,20.8,209.01,209.0,70.78]
[1759288861617,21.49,209.01,209.0,70.78]
[1759288861793,26.27446007,209.01,209.0,70.78]
[1759288875733,38.23561025,209.01,208.94,0.14216157]
[1759288875934,39.64199759,209.01,208.94,0.14216157]
[1759288876230,13.59559401,209.0,208.91,79.58]
[1759288876405,20.8,208.97,208.91,79.58]
[1759288876603,0.69,208.96,208.91,78.9]
[1759288876803,0.69,208.96,208.92,33.5]
[1759288877006,20.8,208.97,208.93,33.5]
[1759288877222,0.69,208.95,208.93,33.5]
[1759288877428,21.49,208.94,208.86,0.68]
[1759288877733,20.8,208.93,208.87,33.02]
[1759288877929,0.69,208.92,208.84,0.68]
[1759288878121,0.69,208.92,208.85,33.5]
[1759288878321,0.68,208.91,208.85,33.5]
[1759288878622,0.68,208.9,208.85,33.5]
[1759288879013,0.68,208.9,208.86,0.14216157]
[1759288879209,0.68,208.9,208.87,33.5]
[1759288879409,4.78743776,208.88,208.87,33.5]
[1759288879816,4.78743776,208.88,208.87,70.8]
[1759288880135,25.58743776,208.88,208.87,70.8]
[1759288881737,4.78743776,208.88,208.87,70.8]
[1759288883140,1.40638734,208.94,208.87,71.63216157]
[1759288883141,0.68,208.94,208.87,71.63216157]
[1759288883440,0.68,208.93,208.88,0.14216157]
[1759288883624,0.68,208.92,208.88,0.14216157]
[1759288883820,0.68,208.92,208.89,33.52]
[1759288884022,0.68,208.91,208.89,33.52]
[1759288884340,0.68,208.9,208.89,33.52]
[1759288884715,0.68,208.92,208.89,33.52]
[1759288885040,0.68,208.91,208.89,33.52]
[1759288885415,4.78697941,208.9,208.87,37.3]
[1759288885618,20.8,208.88,208.87,37.44216157]
[1759288885822,20.8,208.88,208.87,70.96216157]
[1759288887350,4.78743776,208.88,208.87,70.96216157]
[1759288888822,16.75442794,208.9,208.87,70.96216157]
[1759288889143,17.43442794,208.9,208.87,70.96216157]
[1759288889342,0.68,208.89,208.87,37.3]
[1759288889546,17.43442794,208.9,208.88,33.52]
[1759288889724,0.68,208.89,208.88,33.52]
[1759288890932,5.46720857,208.89,208.88,33.52]
[1759288891836,4.78720857,208.89,208.88,33.52]
[1759288892021,4.78720857,208.89,208.88,34.21]
[1759288892219,4.78720857,208.89,208.88,33.52]
[1759288892921,11.96744853,208.9,208.88,33.52]
[1759288892922,16.75442794,208.9,208.88,33.52]
[1759288894029,17.43442794,208.9,208.88,33.52]
[1759288898749,16.75442794,208.9,208.88,33.52]
[1759288898948,17.43442794,208.9,208.88,33.52]
[1759288900028,16.75442794,208.9,208.88,33.52]
[1759288901745,17.43442794,208.9,208.88,33.52]
[1759288902455,0.68,208.89,208.88,33.52]
[1759288903168,0.68,208.89,208.83,37.44216157]
[1759288903326,0.68,208.88,208.84,33.52]
[1759288903653,0.68,208.87,208.85,33.52]
[1759288903855,0.68,208.86,208.85,33.52]
[1759288904061,5.46789619,208.86,208.85,33.52]
[1759288904350,17.43763668,208.86,208.79,0.79]
[1759288904947,17.43763668,208.86,208.8,0.14216157]
[1759288905146,41.37711767,208.86,208.8,0.14216157]
[1759288905542,41.37711767,208.86,208.81,33.52]
[1759288905851,0.68,208.85,208.81,33.52]
[1759288906032,0.68,208.84,208.81,33.52]
[1759288906356,40.69711767,208.86,208.81,33.52]
[1759288906357,0.68,208.83,208.81,33.52]
[1759288907652,0.68,208.82,208.81,33.52]
[1759288908551,5.46881333,208.82,208.81,33.52]
[1759288909958,5.46881333,208.82,208.81,70.84]
[1759288910575,7.94268628,209.2,208.81,70.84]
[1759288910576,4.78812544,208.85,208.81,71.53]
[1759288910758,4.78812544,208.85,208.82,0.83216157]
[1759288911049,0.68,208.84,208.83,33.52]
[1759288912735,19.06394873,208.84,208.83,33.52]
[1759288914071,31.03483553,208.84,208.81,37.32]
[1759288914242,0.67,208.83,208.81,37.32]
[1759288914442,0.67,208.82,208.81,37.32]
[1759288914947,5.45881333,208.82,208.81,37.32]
[1759288915156,5.45881333,208.82,208.81,70.88]
[1759288915368,4.78881333,208.82,208.81,70.88]
[1759288916070,5.45881333,208.82,208.81,70.88]
[1759288916259,4.78858401,208.83,208.81,70.88]
[1759288916462,5.45858401,208.83,208.81,70.88]
[1759288917342,0.67,208.82,208.81,70.88]
[1759288917564,4.78858401,208.83,208.81,70.88]
[1759288918076,4.78858401,208.83,208.81,71.56]
[1759288918368,16.75924152,208.84,208.82,0.68]
[1759288918557,16.75924152,208.84,208.83,33.54]
[1759288918967,16.75924152,208.84,208.81,37.32]
[1759288919165,16.75924152,208.84,208.82,33.56]
[1759288920362,0.67,208.83,208.82,33.56]
[1759288920765,16.75924152,208.84,208.82,33.56]
[1759288920964,16.75924152,208.84,208.81,37.32]
[1759288921170,17.42924152,208.84,208.82,33.56]
[1759288922250,16.75924152,208.84,208.82,34.24]
[1759288922645,16.75924152,208.84,208.81,37.32]
[1759288922646,0.67,208.83,208.79,0.1]
[1759288922866,0.67,208.82,208.8,70.9]
[1759288923072,0.67,208.81,208.8,70.9]
[1759288923872,0.67,208.83,208.8,70.9]
[1759288924446,4.78881333,208.82,208.8,70.9]
[1759288924847,4.78881333,208.82,208.81,0.68]
[1759288925282,4.78881333,208.82,208.8,70.9]
[1759288925594,11.96967682,208.87,208.8,70.9]
[1759288925758,11.96967682,208.87,208.81,0.82216157]
[1759288925953,16.75734378,208.87,208.82,33.58]
[1759288926155,16.75734378,208.87,208.83,0.68]
[1759288926456,11.96967682,208.87,208.84,33.58]
[1759288927470,11.96967682,208.87,208.8,74.68]
[1759288927471,0.67,208.86,208.8,74.68]
[1759288927655,0.67,208.86,208.81,33.58]
[1759288927858,0.67,208.85,208.81,33.58]
[1759288928077,11.96967682,208.87,208.8,74.68]
[1759288928078,0.67,208.84,208.8,74.68]
[1759288928377,0.67,208.83,208.8,74.68]
[1759288928571,5.45881333,208.82,208.8,74.68]
[1759288928756,0.67,208.81,208.8,74.68]
[1759288929566,0.67,208.81,208.8,108.28]
[1759288930478,4.78927203,208.8,208.79,0.1]
[1759288930863,5.45927203,208.8,208.79,0.1]
[1759288931574,5.45927203,208.8,208.79,33.7]
[1759288932158,5.45927203,208.8,208.78,0.1]
[1759288932361,0.67,208.79,208.78,0.1]
[1759288933272,4.78927203,208.8,208.78,0.1]
[1759288933780,4.78927203,208.8,208.79,33.58]
[1759288934962,4.78904267,208.81,208.79,33.58]
[1759288935168,0.67,208.8,208.78,0.1]
[1759288935492,0.67,208.8,208.79,33.58]
[1759288937182,5.45927203,208.8,208.79,33.58]
[1759288938676,5.45927203,208.8,208.78,0.1]
[1759288939073,5.45927203,208.8,208.74,0.68]
[1759288939276,41.40881225,208.8,208.74,0.68]
[1759288939963,41.40881225,208.8,208.75,70.9]
[1759288940174,0.7,208.79,208.75,70.9]
[1759288940686,0.7,208.78,208.76,33.56]
[1759288942275,4.78996024,208.77,208.76,33.56]
[1759288942486,4.78906129,208.81,208.76,34.26]
[1759288942684,5.48906129,208.81,208.76,34.26]
[1759288942891,17.46166796,208.81,208.76,34.26]
[1759288943366,17.46166796,208.81,208.75,37.34]
[1759288943562,17.46166796,208.81,208.76,34.34]
[1759288944485,16.76166796,208.81,208.77,0.68]
[1759288944782,16.76166796,208.81,208.78,34.34]
[1759288944983,0.68,208.8,208.78,33.66]
[1759288945858,21.48,208.82,208.78,33.66]
[1759288946064,20.8,208.82,208.78,33.66]
[1759288946264,0.68,208.81,208.78,33.66]
[1759288946485,0.68,208.8,208.78,33.66]
[1759288946988,0.68,208.8,208.79,33.66]
[1759288947877,5.46927203,208.8,208.79,33.66]
[1759288948279,5.46927203,208.8,208.79,71.0]
[1759288948885,5.46927203,208.8,208.79,37.34]
[1759288949074,5.46927203,208.8,208.79,71.0]
[1759288951983,4.78927203,208.8,208.79,71.0]
[1759288953484,4.78904267,208.81,208.79,71.0]
[1759288953996,0.68,208.8,208.79,71.0]
[1759288954184,4.78904267,208.81,208.79,71.0]
[1759288954510,5.46904267,208.81,208.79,71.0]
[1759288955294,4.78904267,208.81,208.8,0.68]
[1759288955495,11.9722827,208.82,208.8,0.68]
[1759288955802,11.9722827,208.82,208.79,71.0]
[1759288955803,11.9722827,208.82,208.81,33.64]
[1759288956177,11.9722827,208.82,208.81,34.32]
[1759288957389,4.78766696,208.87,208.81,34.32]
[1759288957809,17.43683438,208.87,208.81,34.32]
[1759288958895,41.37516922,208.87,208.81,34.32]
[1759288961708,14.37022489,208.9,208.82,1.10648471]
[1759288961928,4.78468899,209.0,208.87,13.59559401]
[1759288962198,16.74641147,209.0,208.92,20.8]
[1759288962377,16.74801416,208.98,208.93,33.84]
[1759288962586,0.68,208.97,208.93,33.84]
[1759288963092,16.74801416,208.98,208.93,33.84]
[1759288963282,17.42801416,208.98,208.93,33.84]
[1759288963685,16.74801416,208.98,208.93,33.84]
[1759288963887,0.68,208.97,208.9,0.14216157]
[1759288964118,0.68,208.97,208.89,0.14216157]
[1759288964275,0.68,208.97,208.9,33.84]
[1759288964480,16.74961715,208.96,208.9,33.84]
[1759288966402,12.64401225,208.96,208.9,33.84]
[1759288967987,17.42961715,208.96,208.9,33.84]
[1759288968396,0.68,208.95,208.9,33.84]
[1759288968602,0.68,208.94,208.9,33.84]
[1759288968915,0.68,208.93,208.9,33.84]
[1759288969207,40.67764165,208.96,208.9,33.84]
[1759288969386,0.68,208.92,208.88,20.8]
[1759288969586,0.68,208.91,208.79,37.34]
[1759288969787,13.59559401,208.89,208.8,33.82]
[1759288970011,16.75683438,208.87,208.8,33.82]
[1759288970187,0.68,208.86,208.8,33.82]
[1759288972303,16.75843906,208.85,208.8,33.82]
[1759288973112,4.78776295,208.87,208.81,0.14216157]
[1759288973790,0.71,208.86,208.82,33.82]
[1759288973991,16.75693037,208.87,208.82,33.82]
[1759288974511,4.78776295,208.87,208.83,0.14216157]
[1759288974819,16.75693037,208.87,208.83,0.14216157]
[1759288976322,16.75843906,208.85,208.84,33.86]
[1759288976806,17.46843906,208.85,208.84,33.86]
[1759288979106,16.75843906,208.85,208.84,33.86]
[1759288979304,17.46843906,208.85,208.84,33.86]
[1759288979922,4.78812544,208.85,208.84,33.86]
[1759288981409,11.96693668,208.91,208.85,0.14216157]
[1759288981927,16.75523001,208.89,208.85,0.14216157]
[1759288982108,16.75523001,208.89,208.82,21.08432314]
[1759288982109,16.75523001,208.89,208.86,33.9]
[1759288982312,0.71,208.88,208.87,33.9]
[1759288984013,5.49743776,208.88,208.87,33.9]
[1759288984232,4.78743776,208.88,208.87,33.9]
[1759288985912,11.96802144,208.89,208.87,33.9]
[1759288986113,12.67802144,208.89,208.87,33.9]
[1759288986441,11.96802144,208.89,208.87,33.9]
[1759288987716,0.71,208.88,208.87,33.9]
[1759288988128,5.49743776,208.88,208.87,33.9]
[1759288988639,5.49743776,208.88,208.87,33.88]
[1759288988640,17.46603216,208.88,208.87,33.88]
[1759288990913,41.40322097,208.88,208.83,37.32]
[1759288991134,13.59559401,208.86,208.79,37.34]
[1759288991316,40.69322097,208.88,208.79,37.34]
[1759288991317,13.59559401,208.84,208.79,37.34]
[1759288991514,0.71,208.83,208.79,37.34]
[1759288991739,12.68203333,208.82,208.79,37.34]
[1759288991931,0.71,208.81,208.79,37.34]
[1759288992134,11.97203333,208.82,208.79,37.34]
[1759288992135,0.71,208.8,208.79,37.34]
[1759288992315,0.71,208.8,208.79,71.22]
[1759288994173,4.78927203,208.8,208.79,71.22]
[1759288994637,23.92598223,208.98,208.8,0.14216157]
[1759288994638,0.71,208.88,208.8,0.14216157]
[1759288994954,1.40814726,208.86,208.79,37.34]
[1759288995132,0.71,208.85,208.81,33.92]
[1759288995318,0.71,208.84,208.81,33.92]
[1759288995524,0.71,208.83,208.81,33.92]
[1759288995722,0.71,208.85,208.81,33.92]
[1759288996032,16.75924152,208.84,208.81,33.92]
[1759288996626,0.71,208.83,208.81,33.92]
[1759288997146,16.75924152,208.84,208.81,33.92]
[1759288997323,0.71,208.82,208.79,37.34]
[1759288997524,0.71,208.82,208.8,33.94]
[1759288997730,0.71,208.81,208.8,33.94]
[1759288998344,5.49904267,208.81,208.8,33.94]
[1759289003742,4.78904267,208.81,208.8,33.94]
[1759289004469,5.47904267,208.81,208.8,33.94]
[1759289008738,5.47904267,208.81,208.79,37.34]
[1759289009071,0.69,208.8,208.79,37.34]
[1759289009730,5.47927203,208.8,208.79,37.34]
[1759289009934,5.47927203,208.8,208.79,71.2]
[1759289010361,17.4524521,208.8,208.72,0.14216157]
[1759289010558,17.4524521,208.8,208.73,33.86]
[1759289010742,0.69,208.79,208.74,33.86]
[1759289010944,0.69,208.78,208.74,33.86]
[1759289012257,0.69,208.77,208.74,33.86]
[1759289012655,0.69,208.79,208.74,33.86]
[1759289012855,0.69,208.78,208.74,33.86]
[1759289014258,16.76486084,208.77,208.74,33.86]
[1759289014666,0.69,208.76,208.74,33.86]
[1759289015359,0.69,208.76,208.75,33.84]
[1759289016367,5.48018969,208.76,208.75,33.84]
[1759289017254,4.79018969,208.76,208.75,33.84]
[1759289017567,5.48018969,208.76,208.75,33.84]
[1759289019157,41.40661236,208.76,208.71,0.1]
[1759289019357,0.69,208.75,208.71,0.1]
[1759289019653,40.71661236,208.76,208.71,0.1]
[1759289019851,41.40661236,208.76,208.72,37.34]
[1759289020368,20.8,208.74,208.73,33.84]
[1759289020668,25.59064865,208.74,208.73,33.84]
[1759289021553,4.79064865,208.74,208.73,33.84]
[1759289023175,16.76566391,208.76,208.73,33.84]
[1759289023344,17.45566391,208.76,208.73,33.84]
[1759289025246,0.69,208.75,208.73,33.84]
[1759289025671,0.69,208.74,208.73,33.84]
[1759289026673,4.79064865,208.74,208.73,33.84]
[1759289027750,5.48064865,208.74,208.73,33.8]
[1759289029475,17.45727028,208.74,208.71,0.1]
[1759289029697,17.45727028,208.74,208.71,1e-08]
[1759289029991,17.45727028,208.74,208.72,37.34]
[1759289030154,0.69,208.73,208.72,37.34]
[1759289030354,0.69,208.73,208.71,1e-08]
[1759289030571,2.09814726,208.73,208.71,1e-08]
[1759289030767,15.69374127,208.73,208.68,0.1]
[1759289031057,14.28559401,208.73,208.68,0.1]
[1759289031453,16.76887696,208.72,208.68,0.1]
[1759289032063,0.69,208.71,208.69,33.82]
[1759289032452,5.48156684,208.7,208.69,33.82]
[1759289033554,5.48156684,208.7,208.68,0.1]
[1759289033750,0.69,208.69,208.68,0.1]
[1759289034453,11.97776926,208.72,208.68,0.1]
[1759289034454,16.76887696,208.72,208.68,0.1]
[1759289034866,17.45887696,208.72,208.69,33.88]
[1759289035071,4.7911077,208.72,208.69,33.88]
[1759289035676,11.97650324,208.75,208.7,0.14216157]
[1759289035976,16.76439975,208.78,208.7,0.42648471]
[1759289036563,13.59559401,208.81,208.7,0.42648471]
[1759289036763,0.69,208.78,208.7,0.42648471]
[1759289036978,40.70491332,208.82,208.7,0.42648471]
[1759289037175,16.76084666,208.82,208.74,0.42648471]
[1759289037374,17.45084666,208.82,208.76,0.14216157]
[1759289037960,17.45084666,208.82,208.74,0.42648471]
[1759289038175,17.45084666,208.82,208.77,33.94]
[1759289038482,4.78881333,208.82,208.77,33.94]
[1759289038660,0.69,208.81,208.77,33.94]
[1759289039868,0.69,208.81,208.78,37.34]
[1759289040588,4.78927203,208.8,208.78,37.34]
[1759289041287,0.69,208.79,208.78,37.34]
[1759289041477,0.69,208.79,208.78,71.26]
[1759289042367,13.59559401,208.78,208.74,37.34]
[1759289042567,18.8630081,208.77,208.75,33.92]
[1759289042769,0.69,208.76,208.75,33.92]
[1759289044993,5.48018969,208.76,208.75,33.92]
[1759289045595,4.78950141,208.79,208.75,33.92]
[1759289046186,4.78950141,208.79,208.76,0.14216157]
[1759289046798,0.69,208.78,208.68,0.1]
[1759289046984,0.69,208.78,208.72,21.22648471]
[1759289047194,0.69,208.78,208.73,33.92]
[1759289047691,0.69,208.77,208.73,33.92]
[1759289047997,4.79018969,208.76,208.73,33.92]
[1759289049974,16.76415913,208.78,208.74,37.34]
[1759289050184,17.45415913,208.78,208.74,37.34]
[1759289050492,16.76415913,208.78,208.74,37.34]
[1759289051788,11.97442832,208.78,208.74,37.34]
[1759289051991,4.78950141,208.79,208.74,37.34]
[1759289052371,4.78950141,208.79,208.75,0.42648471]
[1759289053581,4.78927203,208.8,208.75,0.42648471]
[1759289054778,0.69,208.8,208.75,0.42648471]
[1759289056200,0.69,208.8,208.76,33.86]
[1759289057602,4.78948326,208.8,208.76,33.86]
[1759289058986,5.47948326,208.8,208.76,33.86]
[1759289059685,11.97220942,208.82,208.76,33.86]
[1759289059686,0.69,208.81,208.76,33.86]
[1759289059885,0.69,208.8,208.76,33.86]
[1759289060080,0.69,208.82,208.77,0.42648471]
[1759289060307,0.69,208.83,208.77,0.42648471]
[1759289061600,4.78881333,208.82,208.77,0.42648471]
[1759289061905,0.69,208.81,208.77,0.42648471]
[1759289062702,4.78927203,208.8,208.77,0.42648471]
[1759289063209,0.71,208.79,208.77,0.14216157]
[1759289063376,0.71,208.79,208.78,33.82]
[1759289064406,0.71,208.79,208.78,71.16]
[1759289064880,5.49950141,208.79,208.78,71.16]
[1759289068302,4.78950141,208.79,208.78,71.16]
[1759289068606,5.49950141,208.79,208.78,71.16]
[1759289070700,5.49950141,208.79,208.78,37.34]
[1759289070910,5.49950141,208.79,208.78,71.14]
[1759289090826,4.78950141,208.79,208.78,71.14]
[1759289092028,4.78927203,208.8,208.78,71.14]
[1759289092527,5.49927203,208.8,208.78,71.14]
[1759289092708,0.71,208.79,208.78,71.14]
[1759289092906,5.49927203,208.8,208.78,71.14]
[1759289094732,12.65271071,208.81,208.78,71.14]
[1759289095142,0.68,208.8,208.78,71.14]
[1759289096551,4.78950141,208.79,208.78,37.34]
[1759289096770,4.78950141,208.79,208.78,71.02]
[1759289098927,0.2,209.0,208.78,71.02]
[1759289099115,4.98632257,208.93,208.79,4.17350947]
[1759289099317,4.98632257,208.93,208.87,20.8]
[1759289099521,0.2,208.93,208.91,20.8]
[1759289099713,0.2,208.93,208.92,36.94259908]
[1759289100118,0.2,208.93,208.92,37.08476065]
[1759289100915,0.2,208.93,208.92,37.36908379]
[1759289101322,0.2,208.93,208.92,65.02122403]
[1759289101525,0.2,208.93,208.92,69.80774518]
[1759289101729,0.2,208.93,208.92,76.20030167]
[1759289101920,0.2,209.0,208.92,76.20030167]
[1759289101921,0.2,209.0,208.96,39.18100197]
[1759289102131,0.2,209.0,208.99,0.28432314]
[1759289102433,0.2,209.0,208.99,51.0046778]
[1759289106962,0.2,209.0,208.99,50.97016902]
[1759289108034,0.2,209.0,208.99,55.75508695]
[1759289108369,0.2,209.01,209.0,14.02207872]
[1759289108544,0.2,209.01,209.0,30.56626587]
[1759289108941,0.2,209.01,209.0,50.56626587]